Workbook

Sheet Constant_2_DefaultT4_G2.5mm
A1: VoiName(Region) [string] | B1: Time [seconds] | C1: Time [minutes] | D1: Averaged [kBq/cc] | E1: Sd [kBq/cc] | F1: Averaged [kBq/cc] | G1: Sd [kBq/cc] | H1: Volume [ccm] | I1: NumberOfPixels [voxels] | J1: SE | K1: %SE | L1: Bias | M1: %Bias | N1: COVframe | O1: COVmean | P1: COVmean | Q1: BPnd | R1: SE | S1: %Bias | T1: %BiasSE | U1: COVframe | V1: COVmean | W1: COVmean | X1: T4 True Data | Y1: kBq/ml | Z1: Av.Measured
A2: BG | B2: 3730 | C2: =B2/60 -> 62.16666667 | D2: 65.374576 | E2: 21.786002 | F2: =D2/8 -> 8.171822 | G2: =E2/8 -> 2.72325025 | H2: 122.32576 | I2: 62635 | J2: =G2/SQRT(I2) -> 0.01088125558 | K2: =J2*100 -> 1.088125558 | L2: =(F2-$Y$2)/$Y$2 -> 0.01136410891 | M2: =100*L2 -> 1.136410891 | N2: =G2/F2 -> 0.3332488459 | O2: =(F2-$Z$2)^2 -> 0.001107153253 | P2: =(SQRT((1/(((COUNT(O2:O11))-1))*(SUM(O2:O11)))))/$Z$2 -> 0.004187457692 | Q2: =(F12/F2)-1 -> 0.966042319 | R2: =SQRT((J2^2)+(J12^2)) -> 0.0631633648 | S2: =100*((Q2-$Y$5)/$Y$5) -> 13.65203752 | T2: =100*((SQRT((J2^2)+(J12^2))/$Y$5)) -> 7.430984094 | U2: =SQRT((N2^2)+(N12^2)) -> 0.3779349211 | V2: =(Q2-$Z$5)^2 -> 0.002457975661 | W2: =(SQRT((1/(((COUNT(V2:V11))-1))*(SUM(V2:V11)))))/$Z$5 -> 0.02505811757 | X2: BG | Y2: 8.08 | Z2: =AVERAGE(F2:F11) -> 8.205095913
A3: BG | B3: 3850 | C3: =B3/60 -> 64.16666667 | D3: 65.760074 | E3: 22.430107 | F3: =D3/8 -> 8.22000925 | G3: =E3/8 -> 2.803763375 | H3: 122.32576 | I3: 62635 | J3: =G3/SQRT(I3) -> 0.01120296083 | K3: =J3*100 -> 1.120296083 | L3: =(F3-$Y$2)/$Y$2 -> 0.01732787748 | M3: =100*L3 -> 1.732787748 | N3: =G3/F3 -> 0.3410900511 | O3: 0.0002224076354 | P3: =(SQRT((1/(((COUNT(O12:O21))-1))*(SUM(O12:O21)))))/$Z$3 -> 0.01179523103 | Q3: =(F13/F3)-1 -> 0.9182512629 | R3: =SQRT((J3^2)+(J13^2)) -> 0.06595990282 | S3: =100*((Q3-$Y$5)/$Y$5) -> 8.029560343 | T3: =100*((SQRT((J3^2)+(J13^2))/$Y$5)) -> 7.759988567 | U3: =SQRT((N3^2)+(N13^2)) -> 0.3903234595 | V3: 3.193081369e-06 | X3: Hot_1_d20mm | Y3: 14.99 | Z3: =AVERAGE(F12:F21) -> 15.72462436
A4: BG | B4: 3970 | C4: 66.16666667 | D4: 65.739487 | E4: 23.594604 | F4: 8.217435875 | G4: 2.9493255 | H4: 122.32576 | I4: 62635 | J4: 0.01178458152 | K4: 1.178458152 | L4: 0.01700939047 | M4: 1.700939047 | N4: 0.3589106803 | O4: 0.0001522746745 | Q4: 0.9017038876 | R4: 0.0622591015 | S4: 6.082810312 | T4: 7.324600176 | U4: 0.4015542488 | V4: 0.0002178710539
A5: BG | B5: 4090 | C5: 68.16666667 | D5: 65.664688 | E5: 23.192266 | F5: 8.208086 | G5: 2.89903325 | H5: 122.32576 | I5: 62635 | J5: 0.01158362943 | K5: 1.158362943 | L5: 0.01585222772 | M5: 1.585222772 | N5: 0.3531923581 | O5: 8.940623258e-06 | Q5: 0.9016588185 | R5: 0.0694050203 | S5: 6.07750806 | T5: 8.165296506 | U5: 0.4067837124 | V5: 0.0002192035671 | X5: BPnd | Y5: 0.85 | Z5: =AVERAGE(Q2:Q11) -> 0.9164643434
A6: BG | B6: 4210 | C6: 70.16666667 | D6: 65.865713 | E6: 24.757146 | F6: 8.233214125 | G6: 3.09464325 | H6: 122.32576 | I6: 62635 | J6: 0.01236522576 | K6: 1.236522576 | L6: 0.01896214418 | M6: 1.896214418 | N6: 0.3758730434 | O6: 0.0007906338742 | Q6: 0.9102632655 | R6: 0.06521801225 | S6: 7.089795941 | T6: 7.672707323 | U6: 0.4200090219 | V6: 3.845336706e-05
A7: BG | B7: 4330 | C7: 72.16666667 | D7: 65.814901 | E7: 25.483223 | F7: 8.226862625 | G7: 3.185402875 | H7: 122.32576 | I7: 62635 | J7: 0.01272787281 | K7: 1.272787281 | L7: 0.01817606745 | M7: 1.817606745 | N7: 0.3871953405 | O7: 0.0004737897731 | Q7: 0.8978963746 | R7: 0.06645740967 | S7: 5.634867595 | T7: 7.818518784 | U7: 0.4323203954 | V7: 0.0003447694667
A8: BG | B8: 4450 | C8: 74.16666667 | D8: 65.298561 | E8: 25.779507 | F8: 8.162320125 | G8: 3.222438375 | H8: 122.32576 | I8: 62635 | J8: 0.01287585508 | K8: 1.287585508 | L8: 0.01018813428 | M8: 1.018813428 | N8: 0.3947944121 | O8: 0.001829767996 | Q8: 0.9410326975 | R8: 0.07330312377 | S8: 10.70972912 | T8: 8.623896914 | U8: 0.4470168999 | V8: 0.0006036040228
A9: BG | B9: 4570 | C9: 76.16666667 | D9: 65.561816 | E9: 27.03502 | F9: 8.195227 | G9: 3.3793775 | H9: 122.32576 | I9: 62635 | J9: 0.0135029347 | K9: 1.35029347 | L9: 0.01426076733 | M9: 1.426076733 | N9: 0.4123592306 | O9: 9.739543393e-05 | Q9: 0.9133765758 | R9: 0.07372024083 | S9: 7.456067739 | T9: 8.672969509 | U9: 0.4640097053 | V9: 9.534308858e-06
A10: BG | B10: 4690 | C10: 78.16666667 | D10: 66.099375 | E10: 27.182275 | F10: 8.262421875 | G10: 3.397784375 | H10: 122.32576 | I10: 62635 | J10: 0.01357648281 | K10: 1.357648281 | L10: 0.02257696473 | M10: 2.257696473 | N10: 0.4112334648 | O10: 0.003286265977 | Q10: 0.9256555905 | R10: 0.07310437675 | S10: 8.900657711 | T10: 8.600514912 | U10: 0.4607655625 | V10: 8.447902405e-05
A11: BG | B11: 4810 | C11: 80.16666667 | D11: 65.228482 | E11: 27.680271 | F11: 8.15356025 | G11: 3.460033875 | H11: 122.32576 | I11: 62635 | J11: 0.01382521232 | K11: 1.382521232 | L11: 0.009103991337 | M11: 0.9103991337 | N11: 0.4243586567 | O11: 0.002655924509 | Q11: 0.8887626421 | R11: 0.08057864881 | S11: 4.560310831 | T11: 9.479841037 | U11: =SQRT((N11^2)+(N21^2)) -> 0.4861944216 | V11: 0.0007673842569
A12: Hot_1_d20mm | B12: 3730 | C12: 62.16666667 | D12: 128.529183 | E12: 22.912832 | F12: 16.06614787 | G12: 2.864104 | H12: 4.170165 | I12: 2119 | J12: 0.06221903993 | K12: 6.221903993 | L12: =(F12-$Y$3)/$Y$3 -> 0.07179105237 | M12: =100*L12 -> 7.179105237 | N12: 0.1782694908 | O12: =(F12-$Z$3)^2 -> 0.1166383096
A13: Hot_1_d20mm | B13: 3850 | C13: 64.16666667 | D13: 126.144345 | E13: 23.937524 | F13: 15.76804313 | G13: 2.9921905 | H13: 4.170165 | I13: 2119 | J13: 0.06500155728 | K13: 6.500155728 | L13: =(F13-$Y$3)/$Y$3 -> 0.05190414443 | M13: 5.190414443 | N13: 0.1897629577 | O13: 0.001885188937
A14: Hot_1_d20mm | B14: 3970 | C14: 66.16666667 | D14: 125.017038 | E14: 22.513114 | F14: 15.62712975 | G14: 2.81413925 | H14: 4.170165 | I14: 2119 | J14: 0.06113361888 | K14: 6.113361888 | L14: 0.04250365243 | M14: 4.250365243 | N14: 0.1800803663 | O14: 0.009505199467
A15: Hot_1_d20mm | B15: 4090 | C15: 68.16666667 | D15: 124.871833 | E15: 25.200654 | F15: 15.60897912 | G15: 3.15008175 | H15: 4.170165 | I15: 2119 | J15: 0.06843154515 | K15: 6.843154515 | L15: 0.04129280354 | M15: 4.129280354 | N15: 0.2018121573 | O15: 0.01337382096
A16: Hot_1_d20mm | B16: 4210 | C16: 70.16666667 | D16: 125.820852 | E16: 23.581605 | F16: 15.7276065 | G16: 2.947700625 | H16: 4.170165 | I16: 2119 | J16: 0.06403507097 | K16: 6.403507097 | L16: 0.04920657105 | M16: 4.920657105 | N16: 0.1874220737 | O16: 8.893144069e-06
A17: Hot_1_d20mm | B17: 4330 | C17: 72.16666667 | D17: 124.909862 | E17: 24.020622 | F17: 15.61373275 | G17: 3.00257775 | H17: 4.170165 | I17: 2119 | J17: 0.06522720716 | K17: 6.522720716 | L17: 0.04160992328 | M17: 4.160992328 | N17: 0.1923036469 | O17: 0.01229694972
A18: Hot_1_d20mm | B18: 4450 | C18: 74.16666667 | D18: 126.746642 | E18: 26.57496 | F18: 15.84333025 | G18: 3.32187 | H18: 4.170165 | I18: 2119 | J18: 0.07216342779 | K18: 7.216342779 | L18: 0.05692663442 | M18: 5.692663442 | N18: 0.2096699335 | O18: 0.01409108773
A19: Hot_1_d20mm | B19: 4570 | C19: 76.16666667 | D19: 125.444443 | E19: 26.688986 | F19: 15.68055538 | G19: 3.33612325 | H19: 4.170165 | I19: 2119 | J19: 0.07247306163 | K19: 7.247306163 | L19: 0.04606773682 | M19: 4.606773682 | N19: 0.2127554267 | O19: 0.001942075659
A20: Hot_1_d20mm | B20: 4690 | C20: 78.16666667 | D20: 127.284631 | E20: 26.453146 | F20: 15.91057888 | G20: 3.30664325 | H20: 4.170165 | I20: 2119 | J20: 0.07183264589 | K20: 7.183264589 | L20: 0.06141286691 | M20: 6.141286691 | N20: 0.2078267093 | O20: 0.03457908072
A21: Hot_1_d20mm | B21: 4810 | C21: 80.16666667 | D21: 123.20112 | E21: 29.233927 | F21: 15.40014 | G21: 3.654240875 | H21: 4.170165 | I21: 2119 | J21: 0.07938376502 | K21: 7.938376502 | L21: 0.02736090727 | M21: 2.736090727 | N21: 0.2372862114 | O21: 0.1052901015

Sheet Constant_2_DefaultT5_G2.5mm
A1: VoiName(Region) [string] | B1: Time [seconds] | C1: Time [minutes] | D1: Averaged [kBq/cc] | E1: Sd [kBq/cc] | F1: Averaged [kBq/cc] | G1: Sd [kBq/cc] | H1: Volume [ccm] | I1: NumberOfPixels [voxels] | J1: SE | K1: %SE | L1: Bias | M1: %Bias | N1: COVframe | O1: COVmean | P1: COVmean | Q1: BPnd | R1: SE | S1: %Bias | T1: %BiasSE | U1: COVframe | V1: COVmean | W1: COVmean | X1: T5 True Data | Y1: kBq/ml | Z1: Av.Measured
A2: BG | B2: 4930 | C2: =B2/60 -> 82.16666667 | D2: 65.61251 | E2: 29.065406 | F2: =D2/16 -> 4.100781875 | G2: =E2/16 -> 1.816587875 | H2: 122.32576 | I2: 62635 | J2: =G2/SQRT(I2) -> 0.007258516531 | K2: =J2*100 -> 0.7258516531 | L2: =(F2-$Y$2)/$Y$2 -> 0.02263887157 | M2: =100*L2 -> 2.263887157 | N2: =G2/F2 -> 0.4429857355 | O2: =(F2-$Z$2)^2 -> 0.0009086773153 | P2: =(SQRT((1/(((COUNT(O2:O11))-1))*(SUM(O2:O11)))))/$Z$2 -> 0.007300725813 | Q2: =(F12/F2)-1 -> 0.8318496732 | R2: =SQRT((J2^2)+(J12^2)) -> 0.04040825483 | S2: =100*((Q2-$Y$5)/$Y$5) -> -2.135332567 | T2: =100*((SQRT((J2^2)+(J12^2))/$Y$5)) -> 4.753912333 | U2: =SQRT((N2^2)+(N12^2)) -> 0.505541048 | V2: =(Q2-$Z$5)^2 -> 0.001702072142 | W2: =(SQRT((1/(((COUNT(V2:V11))-1))*(SUM(V2:V11)))))/$Z$5 -> 0.03335199038 | X2: BG | Y2: 4.01 | Z2: =AVERAGE(F2:F11) -> 4.0706376
A3: BG | B3: 5050 | C3: =B3/60 -> 84.16666667 | D3: 64.817302 | E3: 29.322625 | F3: =D3/16 -> 4.051081375 | G3: =E3/16 -> 1.832664062 | H3: 122.32576 | I3: 62635 | J3: =G3/SQRT(I3) -> 0.007322751944 | K3: =J3*100 -> 0.7322751944 | L3: =(F3-$Y$2)/$Y$2 -> 0.01024473192 | M3: =100*L3 -> 1.024473192 | N3: =G3/F3 -> 0.4523888544 | O3: =(F3-$Z$2)^2 -> 0.0003824459363 | P3: =(SQRT((1/(((COUNT(O12:O21))-1))*(SUM(O12:O21)))))/$Z$3 -> 0.01755148251 | Q3: =(F13/F3)-1 -> 0.8822052019 | R3: =SQRT((J3^2)+(J13^2)) -> 0.04045117791 | S3: =100*((Q3-$Y$5)/$Y$5) -> 3.788847287 | T3: =100*((SQRT((J3^2)+(J13^2))/$Y$5)) -> 4.758962107 | U3: =SQRT((N3^2)+(N13^2)) -> 0.5121899498 | V3: =(Q3-$Z$5)^2 -> 8.279820213e-05 | X3: Hot_1_d20mm | Y3: 7.44 | Z3: =AVERAGE(F12:F21) -> 7.624778187
A4: BG | B4: 5170 | C4: 86.16666667 | D4: 65.522252 | E4: 30.226416 | F4: 4.09514075 | G4: 1.889151 | H4: 122.32576 | I4: 62635 | J4: 0.007548456065 | K4: 0.7548456065 | L4: 0.02123210723 | M4: 2.123210723 | N4: 0.4613152796 | O4: 0.0006004043599 | Q4: 0.9140641717 | R4: 0.0410460962 | S4: 7.536961372 | T4: 4.828952494 | U4: 0.5186068261 | V4: 0.001677584098
A5: BG | B5: 5290 | C5: 88.16666667 | D5: 65.427515 | E5: 30.905096 | F5: 4.089219687 | G5: 1.9315685 | H5: 122.32576 | I5: 62635 | J5: 0.007717943118 | K5: 0.7717943118 | L5: 0.01975553304 | M5: 1.975553304 | N5: 0.4723562556 | O5: 0.0003452939759 | Q5: 0.884744591 | R5: 0.04477856176 | S5: 4.087598943 | T5: 5.26806609 | U5: 0.5408558122 | V5: 0.0001354602879 | X5: BPnd | Y5: 0.85 | Z5: =AVERAGE(Q2:Q11) -> 0.8731058502
A6: BG | B6: 5410 | C6: 90.16666667 | D6: 65.356502 | E6: 31.771702 | F6: 4.084781375 | G6: 1.985731375 | H6: 122.32576 | I6: 62635 | J6: 0.007934361012 | K6: 0.7934361012 | L6: 0.01864872195 | M6: 1.864872195 | N6: 0.4861291689 | O6: 0.0002000463713 | Q6: 0.827809175 | R6: 0.04119777927 | S6: -2.610685297 | T6: 4.846797562 | U6: 0.5463023435 | V6: 0.002051788786
A7: BG | B7: 5530 | C7: 92.16666667 | D7: 65.552574 | E7: 33.266912 | F7: 4.097035875 | G7: 2.079182 | H7: 122.32576 | I7: 62635 | J7: 0.008307760459 | K7: 0.8307760459 | L7: 0.02170470698 | M7: 2.170470698 | N7: 0.5074844506 | O7: 0.000696868923 | Q7: 0.8918404333 | R7: 0.0496154627 | S7: 4.922403917 | T7: 5.837113259 | U7: 0.5847507323 | V7: 0.000350984604
A8: BG | B8: 5650 | C8: 94.16666667 | D8: 65.290609 | E8: 33.690104 | F8: 4.080663063 | G8: 2.1056315 | H8: 122.32576 | I8: 62635 | J8: 0.008413444381 | K8: 0.8413444381 | L8: 0.01762171135 | M8: 1.762171135 | N8: 0.5160022937 | O8: 0.0001005098983 | Q8: 0.8808409185 | R8: 0.0505371584 | S8: 3.628343351 | T8: 5.945548047 | U8: 0.596309362 | V8: 5.983128143e-05
A9: BG | B9: 5770 | C9: 96.16666667 | D9: 64.611455 | E9: 34.546644 | F9: 4.038215938 | G9: 2.15916525 | H9: 122.32576 | I9: 62635 | J9: 0.00862734849 | K9: 0.862734849 | L9: 0.007036393392 | M9: 0.7036393392 | N9: 0.5346829599 | O9: 0.001051164199 | Q9: 0.9019955053 | R9: 0.04608795241 | S9: 6.117118269 | T9: 5.422112048 | U9: 0.5995910022 | V9: 0.0008346121712
A10: BG | B10: 5890 | C10: 98.16666667 | D10: 64.928204 | E10: 35.023814 | F10: 4.05801275 | G10: 2.188988375 | H10: 122.32576 | I10: 62635 | J10: 0.008746512362 | K10: 0.8746512362 | L10: 0.01197325436 | M10: 1.197325436 | N10: 0.5394237302 | O10: 0.0001593868375 | Q10: 0.8695019502 | R10: 0.04908006024 | S10: 2.294347081 | T10: 5.774124734 | U10: 0.6138801939 | V10: 1.298809529e-05
A11: BG | B11: 6010 | C11: 100.1666667 | D11: 64.183093 | E11: 36.660705 | F11: 4.011443312 | G11: 2.291294063 | H11: 122.32576 | I11: 62635 | J11: 0.009155293866 | K11: 0.9155293866 | L11: 0.0003599283042 | M11: 0.03599283042 | N11: 0.5711894408 | O11: 0.003503963673 | Q11: 0.8462068819 | R11: 0.05197235143 | S11: -0.446249185 | T11: 6.114394285 | U11: 0.6537386288 | V11: 0.0007235544939
A12: Hot_1_d20mm | B12: 4930 | C12: 82.16666667 | D12: 120.192255 | E12: 29.277459 | F12: 7.512015938 | G12: 1.829841188 | H12: 4.170165 | I12: 2119 | J12: 0.03975098736 | K12: 3.975098736 | L12: =(F12-$Y$3)/$Y$3 -> 0.009679561492 | M12: 0.9679561492 | N12: 0.2435885657 | O12: =(F12-$Z$3)^2 -> 0.01271532503
A13: Hot_1_d20mm | B13: 5050 | C13: 84.16666667 | D13: 121.999463 | E13: 29.300926 | F13: 7.624966438 | G13: 1.831307875 | H13: 4.170165 | I13: 2119 | J13: 0.0397828493 | K13: 3.97828493 | L13: =(F13-$Y$3)/$Y$3 -> 0.02486108031 | M13: 2.486108031 | N13: 0.2401725817 | O13: =(F13-$Z$3)^2 -> 3.54380625e-08
A14: Hot_1_d20mm | B14: 5170 | C14: 86.16666667 | D14: 125.413795 | E14: 29.715727 | F14: 7.838362187 | G14: 1.857232938 | H14: 4.170165 | I14: 2119 | J14: 0.04034603852 | K14: 4.034603852 | L14: 0.05354330477 | M14: 5.354330477 | N14: 0.2369414545 | O14: 0.04561812506
A15: Hot_1_d20mm | B15: 5290 | C15: 88.16666667 | D15: 123.314155 | E15: 32.486804 | F15: 7.707134687 | G15: 2.03042525 | H15: 4.170165 | I15: 2119 | J15: 0.04410842264 | K15: 4.410842264 | L15: 0.03590519993 | M15: 3.590519993 | N15: 0.263447485 | O15: 0.006782593092
A16: Hot_1_d20mm | B16: 5410 | C16: 90.16666667 | D16: 119.459214 | E16: 29.774998 | F16: 7.466200875 | G16: 1.860937375 | H16: 4.170165 | I16: 2119 | J16: 0.04042651274 | K16: 4.042651274 | L16: 0.003521622984 | M16: 0.3521622984 | N16: 0.249248233 | O16: 0.02514676404
A17: Hot_1_d20mm | B17: 5530 | C17: 92.16666667 | D17: 124.01501 | E17: 36.026937 | F17: 7.750938125 | G17: 2.251683562 | H17: 4.170165 | I17: 2119 | J17: 0.04891497986 | K17: 4.891497986 | L17: 0.04179275874 | M17: 4.179275874 | N17: 0.2905046494 | O17: 0.01591632983
A18: Hot_1_d20mm | B18: 5650 | C18: 94.16666667 | D18: 122.801249 | E18: 36.702269 | F18: 7.675078062 | G18: 2.293891813 | H18: 4.170165 | I18: 2119 | J18: 0.04983190076 | K18: 4.983190076 | L18: 0.03159651378 | M18: 3.159651378 | N18: 0.2988753722 | O18: 0.002530077425
A19: Hot_1_d20mm | B19: 5770 | C19: 96.16666667 | D19: 122.890697 | E19: 33.344733 | F19: 7.680668563 | G19: 2.084045812 | H19: 4.170165 | I19: 2119 | J19: 0.0452732616 | K19: 4.52732616 | L19: 0.03234792507 | M19: 3.234792507 | N19: 0.2713365113 | O19: 0.003123734018
A20: Hot_1_d20mm | B20: 5890 | C20: 98.16666667 | D20: 121.383404 | E20: 35.56988 | F20: 7.58646275 | G20: 2.2231175 | H20: 4.170165 | I20: 2119 | J20: 0.04829441826 | K20: 4.829441826 | L20: 0.01968585349 | M20: 1.968585349 | N20: 0.2930374238 | O20: 0.001468072751
A21: Hot_1_d20mm | B21: 6010 | C21: 100.1666667 | D21: 118.495268 | E21: 37.680157 | F21: 7.40595425 | G21: 2.355009813 | H21: 4.170165 | I21: 2119 | J21: 0.05115961207 | K21: 5.115961207 | L21: -0.004576041667 | M21: -0.4576041667 | N21: 0.3179887065 | O21: 0.04788391562

Sheet Constant_2_DefaultT6_G2.5mm
A1: VoiName(Region) [string] | B1: Time [seconds] | C1: Time [minutes] | D1: Averaged [kBq/cc] | E1: Sd [kBq/cc] | F1: Averaged [kBq/cc] | G1: Sd [kBq/cc] | H1: Volume [ccm] | I1: NumberOfPixels [voxels] | J1: SE | K1: %SE | L1: Bias | M1: %Bias | N1: COVframe | O1: COVmean | P1: COVmean | Q1: BPnd | R1: SE | S1: %Bias | T1: %BiasSE | U1: COVframe | V1: COVmean | W1: COVmean | X1: T6 True Data | Y1: kBq/ml | Z1: Av.Measured
A2: BG | B2: 6130 | C2: =B2/60 -> 102.1666667 | D2: 65.824519 | E2: 36.818122 | F2: =D2/32 -> 2.057016219 | G2: =E2/32 -> 1.150566313 | H2: 122.32576 | I2: 62635 | J2: =G2/SQRT(I2) -> 0.004597302841 | K2: =J2*100 -> 0.4597302841 | L2: =(F2-$Y$2)/$Y$2 -> 0.03367649183 | M2: =100*L2 -> 3.367649183 | N2: =G2/F2 -> 0.5593375016 | O2: =(F2-$Z$2)^2 -> 0.0001059284803 | P2: =(SQRT((1/(((COUNT(O2:O11))-1))*(SUM(O2:O11)))))/$Z$2 -> 0.009747789501 | Q2: =(F12/F2)-1 -> 0.8170739994 | R2: =SQRT((J2^2)+(J12^2)) -> 0.02502390022 | S2: =100*((Q2-$Y$5)/$Y$5) -> -3.873647126 | T2: =100*((SQRT((J2^2)+(J12^2))/$Y$5)) -> 2.943988261 | U2: =SQRT((N2^2)+(N12^2)) -> 0.636105488 | V2: =(Q2-$Z$5)^2 -> 0.0002312359855 | W2: =(SQRT((1/(((COUNT(V2:V11))-1))*(SUM(V2:V11)))))/$Z$5 -> 0.04652901777 | X2: BG | Y2: 1.99 | Z2: =AVERAGE(F2:F11) -> 2.046724063
A3: BG | B3: 6250 | C3: =B3/60 -> 104.1666667 | D3: 64.687099 | E3: 37.287728 | F3: =D3/32 -> 2.021471844 | G3: =E3/32 -> 1.1652415 | H3: 122.32576 | I3: 62635 | J3: =G3/SQRT(I3) -> 0.004655940297 | K3: =J3*100 -> 0.4655940297 | L3: =(F3-$Y$2)/$Y$2 -> 0.01581499686 | M3: =100*L3 -> 1.581499686 | N3: =G3/F3 -> 0.5764322187 | O3: =(F3-$Z$2)^2 -> 0.0006376745518 | P3: =(SQRT((1/(((COUNT(O12:O21))-1))*(SUM(O12:O21)))))/$Z$3 -> 0.01605054556 | Q3: =(F13/F3)-1 -> 0.8881305684 | R3: =SQRT((J3^2)+(J13^2)) -> 0.02596638203 | S3: =100*((Q3-$Y$5)/$Y$5) -> 4.485949218 | T3: =100*((SQRT((J3^2)+(J13^2))/$Y$5)) -> 3.054868474 | U3: =SQRT((N3^2)+(N13^2)) -> 0.6536016037 | V3: =(Q3-$Z$5)^2 -> 0.003119236284 | X3: Hot_1_d20mm | Y3: 3.7 | Z3: =AVERAGE(F12:F21) -> 3.749695494
A4: BG | B4: 6370 | C4: 106.1666667 | D4: 64.691364 | E4: 38.349961 | F4: 2.021605125 | G4: 1.198436281 | H4: 122.32576 | I4: 62635 | J4: 0.004788576252 | K4: 0.4788576252 | L4: 0.01588197236 | M4: 1.588197236 | N4: 0.5928142279 | O4: 0.0006309610211 | Q4: 0.8888898834 | R4: 0.02559651843 | S4: 4.575280395 | T4: 3.011355109 | U4: 0.665813328 | V4: 0.003204628516
A5: BG | B5: 6490 | C5: 108.1666667 | D5: 65.40952 | E5: 40.056919 | F5: 2.0440475 | G5: 1.251778719 | H5: 122.32576 | I5: 62635 | J5: 0.005001715936 | K5: 0.5001715936 | L5: 0.02715954774 | M5: 2.715954774 | N5: 0.6124019715 | O5: 7.163986816e-06 | Q5: 0.8602724343 | R5: 0.02726484705 | S5: 1.208521688 | T5: 3.207629064 | U5: 0.6930465345 | V5: 0.0007835514702 | X5: BPnd | Y5: 0.85 | Z5: =AVERAGE(Q2:Q11) -> 0.832280445
A6: BG | B6: 6610 | C6: 110.1666667 | D6: 64.804675 | E6: 41.149333 | F6: 2.025146094 | G6: 1.285916656 | H6: 122.32576 | I6: 62635 | J6: 0.005138120448 | K6: 0.5138120448 | L6: 0.01766135364 | M6: 1.766135364 | N6: 0.6349747607 | O6: 0.0004656087354 | Q6: 0.8255997889 | R6: 0.02722466753 | S6: -2.87061307 | T6: 3.202902062 | U6: 0.7169403235 | V6: 4.463116528e-05
A7: BG | B7: 6730 | C7: 112.1666667 | D7: 66.060026 | E7: 41.61958 | F7: 2.064375812 | G7: 1.300611875 | H7: 122.32576 | I7: 62635 | J7: 0.005196837943 | K7: 0.5196837943 | L7: 0.03737478015 | M7: 3.737478015 | N7: 0.6300266972 | O7: 0.0003115842781 | Q7: 0.7709952915 | R7: 0.0311269587 | S7: -9.294671592 | T7: 3.661995141 | U7: 0.7390889027 | V7: 0.003755870038
A8: BG | B8: 6850 | C8: 114.1666667 | D8: 65.692361 | E8: 42.578014 | F8: 2.052886281 | G8: 1.330562938 | H8: 122.32576 | I8: 62635 | J8: 0.005316513013 | K8: 0.5316513013 | L8: 0.03160114636 | M8: 3.160114636 | N8: 0.6481425443 | O8: 3.797293992e-05 | Q8: 0.7861783199 | R8: 0.03016825495 | S8: -7.508432955 | T8: 3.549206465 | U8: 0.7477085871 | V8: 0.002125405936
A9: BG | B9: 6970 | C9: 116.1666667 | D9: 65.311353 | E9: 42.292313 | F9: 2.040979781 | G9: 1.321634781 | H9: 122.32576 | I9: 62635 | J9: 0.005280838895 | K9: 0.5280838895 | L9: 0.02561798053 | M9: 2.561798053 | N9: 0.6475491788 | O9: 3.299676708e-05 | Q9: 0.8326039272 | R9: 0.03298585262 | S9: -2.046596797 | T9: 3.880688543 | U9: 0.7615126237 | V9: 1.046407769e-07
A10: BG | B10: 7090 | C10: 118.1666667 | D10: 65.855189 | E10: 45.389288 | F10: 2.057974656 | G10: 1.41841525 | H10: 122.32576 | I10: 62635 | J10: 0.005667543355 | K10: 0.5667543355 | L10: 0.03415811872 | M10: 3.415811872 | N10: 0.6892287258 | O10: 0.0001265758597 | Q10: 0.8356396639 | R10: 0.03206093614 | S10: -1.68945131 | T10: 3.77187484 | U10: 0.7892355712 | V10: 1.128435171e-05
A11: BG | B11: 7210 | C11: 120.1666667 | D11: 66.615594 | E11: 46.544414 | F11: 2.081737313 | G11: 1.454512938 | H11: 122.32576 | I11: 62635 | J11: 0.005811778415 | K11: 0.5811778415 | L11: 0.04609915201 | M11: 4.609915201 | N11: 0.6987014782 | O11: 0.001225927676 | Q11: 0.8174205727 | R11: 0.03160048781 | S11: -3.832873797 | T11: 3.717704448 | U11: 0.7943621719 | V11: 0.0002208158027
A12: Hot_1_d20mm | B12: 6130 | C12: 102.1666667 | D12: 119.608022 | E12: 36.233878 | F12: 3.737750688 | G12: 1.132308687 | H12: 4.170165 | I12: 2119 | J12: 0.0245979753 | K12: 2.45979753 | L12: =(F12-$Y$3)/$Y$3 -> 0.01020288851 | M12: 1.020288851 | N12: 0.302938527 | O12: =(F12-$Z$3)^2 -> 0.0001426783964
A13: Hot_1_d20mm | B13: 6250 | C13: 104.1666667 | D13: 122.137689 | E13: 37.629699 | F13: 3.816802781 | G13: 1.175928094 | H13: 4.170165 | I13: 2119 | J13: 0.02554555178 | K13: 2.554555178 | L13: =(F13-$Y$3)/$Y$3 -> 0.03156831926 | M13: 3.156831926 | N13: 0.3080924431 | O13: =(F13-$Z$3)^2 -> 0.004503388036
A14: Hot_1_d20mm | B14: 6370 | C14: 106.1666667 | D14: 122.194863 | E14: 37.039091 | F14: 3.818589469 | G14: 1.157471594 | H14: 4.170165 | I14: 2119 | J14: 0.02514460764 | K14: 2.514460764 | L14: 0.03205120777 | M14: 3.205120777 | N14: 0.3031149599 | O14: 0.004746379791
A15: Hot_1_d20mm | B15: 6490 | C15: 108.1666667 | D15: 121.679527 | E15: 39.480708 | F15: 3.802485219 | G15: 1.233772125 | H15: 4.170165 | I15: 2119 | J15: 0.02680214025 | K15: 2.680214025 | L15: 0.02769870777 | M15: 2.769870777 | N15: 0.3244646735 | O15: 0.002786755066
A16: Hot_1_d20mm | B16: 6610 | C16: 110.1666667 | D16: 118.307401 | E16: 39.382414 | F16: 3.697106281 | G16: 1.230700437 | H16: 4.170165 | I16: 2119 | J16: 0.02673541173 | K16: 2.673541173 | L16: -0.0007820861486 | M16: -0.07820861486 | N16: 0.3328820823 | O16: 0.002765625271
A17: Hot_1_d20mm | B17: 6730 | C17: 112.1666667 | D17: 116.991995 | E17: 45.207797 | F17: 3.655999844 | G17: 1.412743656 | H17: 4.170165 | I17: 2119 | J17: 0.0306900706 | K17: 3.06900706 | L17: -0.01189193412 | M17: -1.189193412 | N17: 0.3864178656 | O17: 0.008778874829
A18: Hot_1_d20mm | B18: 6850 | C18: 114.1666667 | D18: 117.338271 | E18: 43.743634 | F18: 3.666820969 | G18: 1.366988563 | H18: 4.170165 | I18: 2119 | J18: 0.02969609901 | K18: 2.969609901 | L18: -0.008967305743 | M18: -0.8967305743 | N18: 0.3727993742 | O18: 0.006868186894
A19: Hot_1_d20mm | B19: 6970 | C19: 116.1666667 | D19: 119.689842 | E19: 47.962863 | F19: 3.740307562 | G19: 1.498839469 | H19: 4.170165 | I19: 2119 | J19: 0.03256039332 | K19: 3.256039332 | L19: 0.01089393581 | M19: 1.089393581 | N19: 0.4007262621 | O19: 8.813325315e-05
A20: Hot_1_d20mm | B20: 7090 | C20: 118.1666667 | D20: 120.886397 | E20: 46.483382 | F20: 3.777699906 | G20: 1.452605687 | H20: 4.170165 | I20: 2119 | J20: 0.03155602285 | K20: 3.155602285 | L20: 0.02099997466 | M20: 2.099997466 | N20: 0.3845211964 | O20: 0.0007842471195
A21: Hot_1_d20mm | B21: 7210 | C21: 120.1666667 | D21: 121.068551 | E21: 45.754864 | F21: 3.783392219 | G21: 1.4298395 | H21: 4.170165 | I21: 2119 | J21: 0.0310614562 | K21: 3.10614562 | L21: 0.0225384375 | M21: 2.25384375 | N21: 0.3779252632 | O21: 0.001135469276

Sheet Constant_3_DefaultT4_G2.5mm
A1: VoiName(Region) [string] | B1: Time [seconds] | C1: Time [minutes] | D1: Averaged [kBq/cc] | E1: Sd [kBq/cc] | F1: Averaged [kBq/cc] | G1: Sd [kBq/cc] | H1: Volume [ccm] | I1: NumberOfPixels [voxels] | J1: SE | K1: %SE | L1: Bias | M1: %Bias | N1: COVframe | O1: COVmean | P1: COVmean | Q1: BPnd | R1: %Bias | S1: %BiasSE | T1: COVframe | U1: COVmean | V1: COVmean | W1: T4 True Data | X1: kBq/ml | Y1: Av.Measured
A2: BG | B2: 3760 | C2: =B2/60 -> 62.66666667 | D2: 64.995743 | E2: 18.256425 | F2: =D2/8 -> 8.124467875 | G2: =E2/8 -> 2.282053125 | H2: 122.32576 | I2: 62635 | J2: =G2/SQRT(I2) -> 0.009118369973 | K2: =J2*100 -> 0.9118369973 | L2: =(F2-$X$2)/$X$2 -> 0.005503449876 | M2: =100*L2 -> 0.5503449876 | N2: =G2/F2 -> 0.2808864728 | O2: =(F2-$Y$2)^2 -> 0.002217258162 | P2: =(SQRT((1/(((COUNT(O2:O7))-1))*(SUM(O2:O7)))))/$Y$2 -> 0.005264500089 | Q2: =(F8/F2)-1 -> 0.9608940542 | R2: =100*((Q2-$X$5)/$X$5) -> 13.04635932 | S2: =100*((SQRT((J2^2)+(J8^2))/$X$5)) -> 6.464878584 | T2: =SQRT((N2^2)+(N8^2)) -> 0.3215806554 | U2: =(Q2-$Y$5)^2 -> 0.0008006822931 | V2: =(SQRT((1/(((COUNT(U2:U7))-1))*(SUM(U2:U7)))))/$Y$5 -> 0.01975279136 | W2: BG | X2: 8.08 | Y2: =AVERAGE(F2:F7) -> 8.171555646
A3: BG | B3: 3940 | C3: =B3/60 -> 65.66666667 | D3: 65.723444 | E3: 19.207394 | F3: =D3/8 -> 8.2154305 | G3: =E3/8 -> 2.40092425 | H3: 122.32576 | I3: 62635 | J3: =G3/SQRT(I3) -> 0.00959334178 | K3: =J3*100 -> 0.959334178 | L3: =(F3-$X$2)/$X$2 -> 0.0167612005 | M3: =100*L3 -> 1.67612005 | N3: =G3/F3 -> 0.2922457015 | O3: =(F3-$Y$2)^2 -> 0.001925002828 | P3: =(SQRT((1/(((COUNT(O8:O13))-1))*(SUM(O8:O13)))))/$Y$3 -> 0.006104642373 | Q3: =(F9/F3)-1 -> 0.9189917984 | R3: =100*((Q3-$X$5)/$X$5) -> 8.116682167 | S3: =100*((SQRT((J3^2)+(J9^2))/$X$5)) -> 6.29938791 | T3: =SQRT((N3^2)+(N9^2)) -> 0.3302516519 | U3: =(Q3-$Y$5)^2 -> 0.0001851212167 | W3: Hot_1_d20mm | X3: 14.99 | Y3: =AVERAGE(F8:F13) -> 15.79179656
A4: BG | B4: 4120 | C4: 68.66666667 | D4: 65.330729 | E4: 19.410003 | F4: 8.166341125 | G4: 2.426250375 | H4: 122.32576 | I4: 62635 | J4: 0.009694537048 | K4: 0.9694537048 | L4: 0.0106857828 | M4: 1.06857828 | N4: 0.2971037259 | O4: 2.719122752e-05 | Q4: 0.9200637268 | R4: 8.242791391 | S4: 7.079100449 | T4: 0.3444802411 | U4: 0.0001571010906
A5: BG | B5: 4300 | C5: 71.66666667 | D5: 65.565066 | E5: 21.101035 | F5: 8.19563325 | G5: 2.637629375 | H5: 122.32576 | I5: 62635 | J5: 0.01053914137 | K5: 1.053914137 | L5: 0.01431104579 | M5: 1.431104579 | N5: 0.3218335051 | O5: 0.0005797310224 | Q5: 0.9154675144 | R5: 7.702060513 | S5: 6.46623393 | T5: 0.3586040169 | U5: 0.0002934440897 | W5: BPnd | X5: 0.85 | Y5: =AVERAGE(Q2:Q7) -> 0.9325977242
A6: BG | B6: 4480 | C6: 74.66666667 | D6: 64.935397 | E6: 21.351433 | F6: 8.116924625 | G6: 2.668929125 | H6: 122.32576 | I6: 62635 | J6: 0.01066420537 | K6: 1.066420537 | L6: 0.004569879332 | M6: 0.4569879332 | N6: 0.3288103867 | O6: 0.002984548437 | Q6: 0.9486952394 | R6: 11.61120463 | S6: 7.343064981 | T6: 0.3743640131 | U6: 0.0002591299939
A7: BG | B7: 4660 | C7: 77.66666667 | D7: 65.684292 | E7: 22.590457 | F7: 8.2105365 | G7: 2.823807125 | H7: 122.32576 | I7: 62635 | J7: 0.01128304938 | K7: 1.128304938 | L7: 0.01615550743 | M7: 1.615550743 | N7: 0.3439248002 | O7: 0.001519506992 | Q7: 0.9314740121 | R7: 9.585177892 | S7: 7.436782257 | T7: 0.3884323216 | U7: 1.262728962e-06
A8: Hot_1_d20mm | B8: 3760 | C8: 62.66666667 | D8: 127.449766 | E8: 19.955926 | F8: 15.93122075 | G8: 2.49449075 | H8: 4.170165 | I8: 2119 | J8: 0.05418965917 | K8: 5.418965917 | L8: =(F8-$X$3)/$X$3 -> 0.06278990994 | M8: 6.278990994 | N8: 0.1565787575 | O8: =(F8-$Y$3)^2 -> 0.01943910406
A9: Hot_1_d20mm | B9: 3940 | C9: 65.66666667 | D9: 126.12275 | E9: 19.399386 | F9: 15.76534375 | G9: 2.42492325 | H9: 4.170165 | I9: 2119 | J9: 0.05267839315 | K9: 5.267839315 | L9: =(F9-$X$3)/$X$3 -> 0.05172406604 | M9: 5.172406604 | N9: 0.1538135348 | O9: =(F9-$Y$3)^2 -> 0.0006997512892
A10: Hot_1_d20mm | B10: 4120 | C10: 68.66666667 | D10: 125.439163 | E10: 21.869631 | F10: 15.67989537 | G10: 2.733703875 | H10: 4.170165 | I10: 2119 | J10: 0.05938626201 | K10: 5.938626201 | L10: 0.04602370747 | M10: 4.602370747 | N10: 0.1743445227 | O10: 0.01252187576
A11: Hot_1_d20mm | B11: 4300 | C11: 71.66666667 | D11: 125.587754 | E11: 19.865123 | F11: 15.69846925 | G11: 2.483140375 | H11: 4.170165 | I11: 2119 | J11: 0.05394308662 | K11: 5.394308662 | L11: 0.04726279186 | M11: 4.726279186 | N11: 0.1581772296 | O11: 0.008709987258
A12: Hot_1_d20mm | B12: 4480 | C12: 74.66666667 | D12: 126.539299 | E12: 22.647404 | F12: 15.81741237 | G12: 2.8309255 | H12: 4.170165 | I12: 2119 | J12: 0.06149827895 | K12: 6.149827895 | L12: 0.05519762342 | M12: 5.519762342 | N12: 0.1789752605 | O12: 0.00065616985
A13: Hot_1_d20mm | B13: 4660 | C13: 77.66666667 | D13: 126.867503 | E13: 22.904908 | F13: 15.85843787 | G13: 2.8631135 | H13: 4.170165 | I13: 2119 | J13: 0.06219752257 | K13: 6.219752257 | L13: 0.05793448132 | M13: 5.793448132 | N13: 0.1805419627 | O13: 0.004441064532

Sheet Constant_3_DefaultT5_G2.5mm
A1: VoiName(Region) [string] | B1: Time [seconds] | C1: Time [minutes] | D1: Averaged [kBq/cc] | E1: Sd [kBq/cc] | F1: Averaged [kBq/cc] | G1: Sd [kBq/cc] | H1: Volume [ccm] | I1: NumberOfPixels [voxels] | J1: SE | K1: %SE | L1: Bias | M1: %Bias | N1: COVframe | O1: COVmean | P1: COVmean | Q1: BPnd | R1: %Bias | S1: %BiasSE | T1: COVframe | U1: COVmean | V1: COVmean | W1: T5 True Data | X1: kBq/ml | Y1: Av.Measured
A2: BG | B2: 4840 | C2: =B2/60 -> 80.66666667 | D2: 64.99458 | E2: 23.573912 | F2: =D2/16 -> 4.06216125 | G2: =E2/16 -> 1.4733695 | H2: 122.32576 | I2: 62635 | J2: =G2/SQRT(I2) -> 0.005887123336 | K2: =J2*100 -> 0.5887123336 | L2: =(F2-$X$2)/$X$2 -> 0.01300779302 | M2: =100*L2 -> 1.300779302 | N2: =G2/F2 -> 0.3627058133 | O2: =(F2-$Y$2)^2 -> 8.833004004e-05 | P2: =(SQRT((1/(((COUNT(O2:O7))-1))*(SUM(O2:O7)))))/$Y$2 -> 0.006450630166 | Q2: =(F8/F2)-1 -> 0.8904951305 | R2: =100*((Q2-$X$5)/$X$5) -> 4.764133002 | S2: =100*((SQRT((J2^2)+(J8^2))/$X$5)) -> 4.008159676 | T2: =SQRT((N2^2)+(N8^2)) -> 0.4147477778 | U2: =(Q2-$Y$5)^2 -> 9.405759697e-06 | V2: =(SQRT((1/(((COUNT(U2:U7))-1))*(SUM(U2:U7)))))/$Y$5 -> 0.0224400717 | W2: BG | X2: 4.01 | Y2: =AVERAGE(F2:F7) -> 4.052762844
A3: BG | B3: 5020 | C3: =B3/60 -> 83.66666667 | D3: 64.601055 | E3: 24.590676 | F3: =D3/16 -> 4.037565938 | G3: =E3/16 -> 1.53691725 | H3: 122.32576 | I3: 62635 | J3: =G3/SQRT(I3) -> 0.006141040254 | K3: =J3*100 -> 0.6141040254 | L3: =(F3-$X$2)/$X$2 -> 0.006874298628 | M3: =100*L3 -> 0.6874298628 | N3: =G3/F3 -> 0.3806544026 | O3: =(F3-$Y$2)^2 -> 0.0002309459596 | P3: =(SQRT((1/(((COUNT(O8:O13))-1))*(SUM(O8:O13)))))/$Y$3 -> 0.01179990272 | Q3: =(F9/F3)-1 -> 0.8679257328 | R3: =100*((Q3-$X$5)/$X$5) -> 2.10890974 | S3: =100*((SQRT((J3^2)+(J9^2))/$X$5)) -> 3.862206282 | T3: =SQRT((N3^2)+(N9^2)) -> 0.4285352302 | U3: =(Q3-$Y$5)^2 -> 0.0006572187921 | W3: Hot_1_d20mm | X3: 7.44 | Y3: =AVERAGE(F8:F13) -> 7.674113229
A4: BG | B4: 5200 | C4: 86.66666667 | D4: 65.457171 | E4: 25.821602 | F4: 4.091073188 | G4: 1.613850125 | H4: 122.32576 | I4: 62635 | J4: 0.006448439942 | K4: 0.6448439942 | L4: 0.02021775249 | M4: 2.021775249 | N4: 0.3944808736 | O4: 0.001467682438 | Q4: 0.9042113812 | R4: 6.377809554 | S4: 3.816350032 | T4: 0.4369268374 | U4: 0.0001134090727
A5: BG | B5: 5380 | C5: 89.66666667 | D5: 64.687821 | E5: 26.530245 | F5: 4.042988812 | G5: 1.658140313 | H5: 122.32576 | I5: 62635 | J5: 0.006625409667 | K5: 0.6625409667 | L5: 0.008226636534 | M5: 0.8226636534 | N5: 0.4101273561 | O5: 9.553168688e-05 | Q5: 0.8794151066 | R5: 3.460600776 | S5: 4.185556723 | T5: 0.4615707814 | U5: 0.0002001349218 | W5: BPnd | X5: 0.85 | Y5: =AVERAGE(Q2:Q7) -> 0.8935620116
A6: BG | B6: 5560 | C6: 92.66666667 | D6: 65.066482 | E6: 28.149831 | F6: 4.066655125 | G6: 1.759364437 | H6: 122.32576 | I6: 62635 | J6: 0.007029869586 | K6: 0.7029869586 | L6: 0.0141284601 | M6: 1.41284601 | N6: 0.4326318272 | O6: 0.0001929954783 | Q6: 0.8936667115 | R6: 5.13726018 | S6: 5.072402839 | T6: 0.5018235548 | U6: 1.096207201e-08
A7: BG | B7: 5740 | C7: 95.66666667 | D7: 64.258124 | E7: 28.792619 | F7: 4.01613275 | G7: 1.799538687 | H7: 122.32576 | I7: 62635 | J7: 0.007190393314 | K7: 0.7190393314 | L7: 0.00152936409 | M7: 0.152936409 | N7: 0.4480774913 | O7: 0.001341763768 | Q7: =(F13/F7)-1 -> 0.9256580071 | R7: =100*((Q7-$X$5)/$X$5) -> 8.900942008 | S7: 4.747076025 | T7: 0.5065812484 | U7: 0.001030152924
A8: Hot_1_d20mm | B8: 4840 | C8: 80.66666667 | D8: 122.871937 | E8: 24.715351 | F8: 7.679496063 | G8: 1.544709437 | H8: 4.170165 | I8: 2119 | J8: =G8/SQRT(I8) -> 0.03355686043 | K8: 3.355686043 | L8: =(F8-$X$3)/$X$3 -> 0.03219033098 | M8: =100*L8 -> 3.219033098 | N8: 0.20114724 | O8: =(F8-$Y$3)^2 -> 2.897489469e-05
A9: Hot_1_d20mm | B9: 5020 | C9: 83.66666667 | D9: 120.669973 | E9: 23.752274 | F9: 7.541873312 | G9: 1.484517125 | H9: 4.170165 | I9: 2119 | J9: 0.0322492585 | K9: 3.22492585 | L9: =(F9-$X$3)/$X$3 -> 0.01369264953 | M9: 1.369264953 | N9: 0.1968366563 | O9: =(F9-$Y$3)^2 -> 0.01748739556
A10: Hot_1_d20mm | B10: 5200 | C10: 86.66666667 | D10: 124.64429 | E10: 23.415186 | F10: 7.790268125 | G10: 1.463449125 | H10: 4.170165 | I10: 2119 | J10: 0.03179158283 | K10: 3.179158283 | L10: 0.04707904906 | M10: 4.707904906 | N10: 0.1878560663 | O10: 0.01349195983
A11: Hot_1_d20mm | B11: 5380 | C11: 89.66666667 | D11: 121.575268 | E11: 25.74502 | F11: 7.59845425 | G11: 1.60906375 | H11: 4.170165 | I11: 2119 | J11: 0.03495487654 | K11: 3.495487654 | L11: 0.02129761425 | M11: 2.129761425 | N11: 0.2117619844 | O11: 0.005724281129
A12: Hot_1_d20mm | B12: 5560 | C12: 92.66666667 | D12: 123.214231 | E12: 31.330494 | F12: 7.700889437 | G12: 1.958155875 | H12: 4.170165 | I12: 2119 | J12: 0.04253846179 | K12: 4.253846179 | L12: 0.03506578461 | M12: 3.506578461 | N12: 0.254276586 | O12: 0.0007169653327
A13: Hot_1_d20mm | B13: 5740 | C13: 95.66666667 | D13: 123.739171 | E13: 29.243083 | F13: 7.733698187 | G13: 1.827692687 | H13: 4.170165 | I13: 2119 | J13: 0.03970431392 | K13: 3.970431392 | L13: 0.03947556284 | M13: 3.947556284 | N13: 0.2363284218 | O13: 0.00355036726

Sheet Constant_3_DefaultT6_G2.5mm
A1: VoiName(Region) [string] | B1: Time [seconds] | C1: Time [minutes] | D1: Averaged [kBq/cc] | E1: Sd [kBq/cc] | F1: Averaged [kBq/cc] | G1: Sd [kBq/cc] | H1: Volume [ccm] | I1: NumberOfPixels [voxels] | J1: SE | K1: %SE | L1: Bias | M1: %Bias | N1: COVframe | O1: COVmean | P1: COVmean | Q1: BPnd | R1: %Bias | S1: %BiasSE | T1: COVframe | U1: COVmean | V1: COVmean | W1: T6 True Data | X1: kBq/ml | Y1: Av.Measured
A2: BG | B2: 5920 | C2: =B2/60 -> 98.66666667 | D2: 64.099843 | E2: 30.244541 | F2: =D2/32 -> 2.003120094 | G2: =E2/32 -> 0.9451419063 | H2: 122.32576 | I2: 62635 | J2: =G2/SQRT(I2) -> 0.003776491215 | K2: =J2*100 -> 0.3776491215 | L2: =(F2-$X$2)/$X$2 -> 0.006593011935 | M2: =100*L2 -> 0.6593011935 | N2: =G2/F2 -> 0.4718348686 | O2: =(F2-$Y$2)^2 -> 0.0004952615532 | P2: =(SQRT((1/(((COUNT(O2:O9))-1))*(SUM(O2:O9)))))/$Y$2 -> 0.008986986734 | Q2: =(F10/F2)-1 -> 0.8733215462 | R2: =100*((Q2-$X$5)/$X$5) -> 2.743711318 | S2: =100*((SQRT((J2^2)+(J10^2))/$X$5)) -> 2.480833291 | T2: =SQRT((N2^2)+(N10^2)) -> 0.5360944262 | U2: =(Q2-$Y$5)^2 -> 0.00015948735 | V2: =(SQRT((1/(((COUNT(U2:U9))-1))*(SUM(U2:U9)))))/$Y$5 -> 0.04281736193 | W2: BG | X2: 1.99 | Y2: =AVERAGE(F2:F9) -> 2.025374566
A3: BG | B3: 6100 | C3: =B3/60 -> 101.6666667 | D3: 65.000144 | E3: 30.999156 | F3: =D3/32 -> 2.0312545 | G3: =E3/32 -> 0.968723625 | H3: 122.32576 | I3: 62635 | J3: =G3/SQRT(I3) -> 0.003870716381 | K3: =J3*100 -> 0.3870716381 | L3: =(F3-$X$2)/$X$2 -> 0.02073090452 | M3: =100*L3 -> 2.073090452 | N3: =G3/F3 -> 0.4769090358 | O3: =(F3-$Y$2)^2 -> 3.457361907e-05 | P3: =(SQRT((1/(((COUNT(O10:O17))-1))*(SUM(O10:O17)))))/$Y$3 -> 0.0171664256 | Q3: =(F11/F3)-1 -> 0.8582558832 | R3: =100*((Q3-$X$5)/$X$5) -> 0.9712803822 | S3: =100*((SQRT((J3^2)+(J11^2))/$X$5)) -> 2.576819628 | T3: =SQRT((N3^2)+(N11^2)) -> 0.5445773091 | U3: =(Q3-$Y$5)^2 -> 5.938154294e-06 | W3: Hot_1_d20mm | X3: 3.7 | Y3: =AVERAGE(F10:F17) -> 3.768302504
A4: BG | B4: 6280 | C4: 104.6666667 | D4: 64.215561 | E4: 31.763867 | F4: 2.006736281 | G4: 0.9926208438 | H4: 122.32576 | I4: 62635 | J4: 0.003966202187 | K4: 0.3966202187 | L4: 0.008410191583 | M4: 0.8410191583 | N4: 0.49464439 | O4: 0.0003473856736 | Q4: 0.8769271984 | R4: 3.167905692 | S4: 2.669308158 | T4: 0.5649930216 | U4: 0.0002635584152
A5: BG | B5: 6460 | C5: 107.6666667 | D5: 64.692721 | E5: 34.500826 | F5: 2.021647531 | G5: 1.078150813 | H5: 122.32576 | I5: 62635 | J5: 0.00430795317 | K5: 0.430795317 | L5: 0.01590328204 | M5: 1.590328204 | N5: 0.5333030589 | O5: 1.389079106e-05 | Q5: 0.9240863435 | R5: 8.716040412 | S5: 2.656511706 | T5: 0.594322063 | U5: 0.004018751996 | W5: BPnd | X5: 0.85 | Y5: =AVERAGE(Q2:Q9) -> 0.8606927161
A6: BG | B6: 6640 | C6: 110.6666667 | D6: 64.359747 | E6: 35.296004 | F6: 2.011242094 | G6: 1.103000125 | H6: 122.32576 | I6: 62635 | J6: 0.004407243245 | K6: 0.4407243245 | L6: 0.01067441897 | M6: 1.067441897 | N6: 0.5484173827 | O6: 0.0001997267834 | Q6: 0.8447033672 | R6: -0.6231332761 | S6: 2.702751837 | T6: 0.6156436087 | U6: 0.0002556592794
A7: BG | B7: 6820 | C7: 113.6666667 | D7: 65.478117 | E7: 36.829704 | F7: 2.046191156 | G7: 1.15092825 | H7: 122.32576 | I7: 62635 | J7: 0.00459874903 | K7: 0.459874903 | L7: 0.02823676193 | M7: 2.823676193 | N7: 0.5624734749 | O7: 0.0004333304127 | Q7: 0.7933463481 | R7: -6.665135522 | S7: 2.942791299 | T7: 0.6414904387 | U7: 0.004535533286
A8: BG | B8: 7000 | C8: 116.6666667 | D8: 64.945412 | E8: 37.631483 | F8: 2.029544125 | G8: 1.175983844 | H8: 122.32576 | I8: 62635 | J8: 0.00469886334 | K8: 0.469886334 | L8: 0.0198714196 | M8: 1.98714196 | N8: 0.5794325086 | O8: 1.738521887e-05 | Q8: 0.8685600301 | R8: 2.18353295 | S8: 3.190417404 | T8: 0.6639614516 | U8: 6.189462936e-05
A9: BG | B9: 7180 | C9: 119.6666667 | D9: 65.704344 | E9: 40.024759 | F9: 2.05326075 | G9: 1.250773719 | H9: 122.32576 | I9: 62635 | J9: 0.00499770027 | K9: 0.499770027 | L9: 0.03178932161 | M9: 3.178932161 | N9: 0.6091645782 | O9: 0.0007776392354 | Q9: 0.8463410121 | R9: -0.4304691653 | S9: 3.148555385 | T9: 0.687751857 | U9: 0.0002059714075
A10: Hot_1_d20mm | B10: 5920 | C10: 98.66666667 | D10: 120.079617 | E10: 30.559989 | F10: 3.752488031 | G10: 0.9549996563 | H10: 4.170165 | I10: 2119 | J10: 0.02074616067 | K10: 2.074616067 | L10: =(F10-$X$3)/$X$3 -> 0.01418595439 | M10: 1.418595439 | N10: 0.2544977221 | O10: =(F10-$Y$3)^2 -> 0.0002500975454
A11: Hot_1_d20mm | B11: 6100 | C11: 101.6666667 | D11: 120.7869 | E11: 31.75621 | F11: 3.774590625 | G11: 0.9923815625 | H11: 4.170165 | I11: 2119 | J11: 0.02155823534 | K11: 2.155823534 | L11: =(F11-$X$3)/$X$3 -> 0.02015962838 | M11: 2.015962838 | N11: 0.2629110442 | O11: =(F11-$Y$3)^2 -> 3.954046689e-05
A12: Hot_1_d20mm | B12: 6280 | C12: 104.6666667 | D12: 120.527933 | E12: 32.907446 | F12: 3.766497906 | G12: 1.028357688 | H12: 4.170165 | I12: 2119 | J12: 0.02233977119 | K12: 2.233977119 | L12: 0.01797240709 | M12: 1.797240709 | N12: 0.2730275479 | O12: 3.256572701e-06
A13: Hot_1_d20mm | B13: 6460 | C13: 107.6666667 | D13: 124.474381 | E13: 32.650881 | F13: 3.889824406 | G13: 1.020340031 | H13: 4.170165 | I13: 2119 | J13: 0.02216559774 | K13: 2.216559774 | L13: 0.05130389358 | M13: 5.130389358 | N13: 0.2623100492 | O13: 0.01476757275
A14: Hot_1_d20mm | B14: 6640 | C14: 110.6666667 | D14: 118.724642 | E14: 33.212235 | F14: 3.710145063 | G14: 1.037882344 | H14: 4.170165 | I14: 2119 | J14: 0.02254668231 | K14: 2.254668231 | L14: 0.002741908784 | M14: 0.2741908784 | N14: 0.2797417153 | O14: 0.003382287991
A15: Hot_1_d20mm | B15: 6820 | C15: 113.6666667 | D15: 117.424942 | E15: 36.218233 | F15: 3.669529438 | G15: 1.131819781 | H15: 4.170165 | I15: 2119 | J15: 0.02458735443 | K15: 2.458735443 | L15: -0.008235287162 | M15: -0.8235287162 | N15: 0.308437308 | O15: 0.009756118647
A16: Hot_1_d20mm | B16: 7000 | C16: 116.6666667 | D16: 121.354401 | E16: 39.342561 | F16: 3.792325031 | G16: 1.229455031 | H16: 4.170165 | I16: 2119 | J16: 0.02670835685 | K16: 2.670835685 | L16: 0.02495271115 | M16: 2.495271115 | N16: 0.3241955848 | O16: 0.00057708182
A17: Hot_1_d20mm | B17: 7180 | C17: 119.6666667 | D17: 121.312625 | E17: 38.729164 | F17: 3.791019531 | G17: 1.210286375 | H17: 4.170165 | I17: 2119 | J17: 0.02629194202 | K17: 2.629194202 | L17: 0.02459987331 | M17: 2.459987331 | N17: 0.3192508941 | O17: 0.0005160633313

Sheet Constant_5_DefaultT4_G2.5mm
A1: VoiName(Region) [string] | B1: Time [seconds] | C1: Time [minutes] | D1: Averaged [kBq/cc] | E1: Sd [kBq/cc] | F1: Averaged [kBq/cc] | G1: Sd [kBq/cc] | H1: Volume [ccm] | I1: NumberOfPixels [voxels] | J1: SE | K1: %SE | L1: Bias | M1: %Bias | N1: COVframe | O1: COVmean | P1: COVmean | Q1: BPnd | R1: SE | S1: %Bias | T1: %BiasSE | U1: COVframe | V1: COVmean | W1: COVmean | X1: T4 True Data | Y1: kBq/ml | Z1: Av.Measured
A2: BG | B2: 3820 | C2: =B2/60 -> 63.66666667 | D2: 65.169221 | E2: 14.750586 | F2: =D2/8 -> 8.146152625 | G2: =E2/8 -> 1.84382325 | H2: 122.32576 | I2: 62635 | J2: =G2/SQRT(I2) -> 0.007367340564 | K2: =J2*100 -> 0.7367340564 | L2: =(F2-$Y$2)/$Y$2 -> 0.008187206064 | M2: =100*L2 -> 0.8187206064 | N2: =G2/F2 -> 0.2263428314 | O2: =(F2-$Z$2)^2 -> 0.0002850599588 | P2: =(SQRT((1/(((COUNT(O2:O5))-1))*(SUM(O2:O5)))))/$Z$2 -> 0.001917185505 | Q2: =(F6/F2)-1 -> 0.9474376255 | R2: =SQRT((J2^2)+(J6^2)) -> 0.04662456429 | S2: =100*((Q2-$Y$5)/$Y$5) -> 11.46325006 | T2: =100*((SQRT((J2^2)+(J6^2))/$Y$5)) -> 5.485242858 | U2: =SQRT((N2^2)+(N6^2)) -> 0.262825661 | V2: =(Q2-$Z$5)^2 -> 3.192801189e-05 | W2: =(SQRT((1/(((COUNT(V2:V5))-1))*(SUM(V2:V5)))))/$Z$5 -> 0.006385340325 | X2: BG | Y2: 8.08 | Z2: =AVERAGE(F2:F5) -> 8.129268906
A3: BG | B3: 4120 | C3: =B3/60 -> 68.66666667 | D3: 65.057908 | E3: 15.632276 | F3: =D3/8 -> 8.1322385 | G3: =E3/8 -> 1.9540345 | H3: 122.32576 | I3: 62635 | J3: =G3/SQRT(I3) -> 0.007807710222 | K3: =J3*100 -> 0.7807710222 | L3: =(F3-$Y$2)/$Y$2 -> 0.006465160891 | M3: =100*L3 -> 0.6465160891 | N3: =G3/F3 -> 0.240282488 | O3: =(F3-$Z$2)^2 -> 8.81848704e-06 | P3: =(SQRT((1/(((COUNT(O6:O9))-1))*(SUM(O6:O9)))))/$Z$3 -> 0.00354885279 | Q3: =(F7/F3)-1 -> 0.9381093533 | R3: =SQRT((J3^2)+(J7^2)) -> 0.04752972829 | S3: =100*((Q3-$Y$5)/$Y$5) -> 10.36580627 | T3: =100*((SQRT((J3^2)+(J7^2))/$Y$5)) -> 5.59173274 | U3: =SQRT((N3^2)+(N7^2)) -> 0.2765606902 | V3: =(Q3-$Z$5)^2 -> 1.352609853e-05 | X3: Hot_1_d20mm | Y3: 14.99 | Z3: =AVERAGE(F6:F9) -> 15.78530569
A4: BG | B4: 4420 | C4: 73.66666667 | D4: 64.867514 | E4: 16.833036 | F4: 8.10843925 | G4: 2.1041295 | H4: 122.32576 | I4: 62635 | J4: 0.00840744286 | K4: 0.840744286 | L4: 0.003519709158 | M4: 0.3519709158 | N4: 0.2594987069 | O4: 0.0004338745795 | Q4: 0.9463276024 | R4: 0.04893434134 | S4: 11.33265911 | T4: 5.756981334 | U4: 0.295145821 | V4: 2.061581967e-05
A5: BG | B5: 4720 | C5: 78.66666667 | D5: 65.041962 | E5: 18.094483 | F5: 8.13024525 | G5: 2.261810375 | H5: 122.32576 | I5: 62635 | J5: 0.00903748628 | K5: 0.903748628 | L5: 0.006218471535 | M5: 0.6218471535 | N5: 0.2781970661 | O5: 9.532471182e-07 | Q5: 0.9352739697 | R5: 0.05532254264 | S5: 10.03223174 | T5: 6.508534429 | U5: 0.3207662712 | V5: 4.242135734e-05 | X5: BPnd | Y5: 0.85 | Z5: =AVERAGE(Q2:Q5) -> 0.9417871377
A6: Hot_1_d20mm | B6: 3820 | C6: 63.66666667 | D6: 126.912993 | E6: 16.954289 | F6: 15.86412413 | G6: 2.119286125 | H6: 4.170165 | I6: 2119 | J6: 0.04603881285 | K6: 4.603881285 | L6: =(F6-$Y$3)/$Y$3 -> 0.05831381755 | M6: 5.831381755 | N6: 0.1335898603 | O6: =(F6-$Z$3)^2 -> 0.00621234609
A7: Hot_1_d20mm | B7: 4120 | C7: 68.66666667 | D7: 126.08934 | E7: 17.265559 | F7: 15.7611675 | G7: 2.158194875 | H7: 4.170165 | I7: 2119 | J7: 0.04688405627 | K7: 4.688405627 | L7: =(F7-$Y$3)/$Y$3 -> 0.05144546364 | M7: 5.144546364 | N7: 0.1369311553 | O7: =(F7-$Z$3)^2 -> 0.0005826520958
A8: Hot_1_d20mm | B8: 4420 | C8: 73.66666667 | D8: 126.253433 | E8: 17.752632 | F8: 15.78167913 | G8: 2.219079 | H8: 4.170165 | I8: 2119 | J8: 0.04820668695 | K8: 4.820668695 | L8: 0.05281381755 | M8: 5.281381755 | N8: 0.1406110834 | O8: 1.315195557e-05
A9: Hot_1_d20mm | B9: 4720 | C9: 78.66666667 | D9: 125.874016 | E9: 20.099441 | F9: 15.734252 | G9: 2.512430125 | H9: 4.170165 | I9: 2119 | J9: 0.05457936942 | K9: 5.457936942 | L9: 0.04964989993 | M9: 4.964989993 | N9: 0.1596790318 | O9: 0.002606479007

Sheet Constant_5_DefaultT5_G2.5mm
A1: VoiName(Region) [string] | B1: Time [seconds] | C1: Time [minutes] | D1: Averaged [kBq/cc] | E1: Sd [kBq/cc] | F1: Averaged [kBq/cc] | G1: Sd [kBq/cc] | H1: Volume [ccm] | I1: NumberOfPixels [voxels] | J1: SE | K1: %SE | L1: Bias | M1: %Bias | N1: COVframe | O1: COVmean | P1: COVmean | Q1: BPnd | R1: SE | S1: %Bias | T1: %BiasSE | U1: COVframe | V1: COVmean | W1: COVmean | X1: T5 True Data | Y1: kBq/ml | Z1: Av.Measured
A2: BG | B2: 5020 | C2: =B2/60 -> 83.66666667 | D2: 64.413003 | E2: 19.460305 | F2: =D2/16 -> 4.025812688 | G2: =E2/16 -> 1.216269063 | H2: 122.32576 | I2: 62635 | J2: =G2/SQRT(I2) -> 0.004859830464 | K2: =J2*100 -> 0.4859830464 | L2: =(F2-$Y$2)/$Y$2 -> 0.003943313591 | M2: =100*L2 -> 0.3943313591 | N2: =G2/F2 -> 0.3021176485 | O2: =(F2-$Z$2)^2 -> 2.641172996e-05 | P2: =(SQRT((1/(((COUNT(O2:O5))-1))*(SUM(O2:O5)))))/$Z$2 -> 0.007958528486 | Q2: =(F6/F2)-1 -> 0.893641273 | R2: =SQRT((J2^2)+(J6^2)) -> 0.02637252729 | S2: =100*((Q2-$Y$5)/$Y$5) -> 5.134267414 | T2: =100*((SQRT((J2^2)+(J6^2))/$Y$5)) -> 3.102650269 | U2: =SQRT((N2^2)+(N6^2)) -> 0.3402542095 | V2: =(Q2-$Z$5)^2 -> 0.0002022944187 | W2: =(SQRT((1/(((COUNT(V2:V5))-1))*(SUM(V2:V5)))))/$Z$5 -> 0.01389360843 | X2: BG | Y2: 4.01 | Z2: =AVERAGE(F2:F5) -> 4.020673453
A3: BG | B3: 5320 | C3: =B3/60 -> 88.66666667 | D3: 64.881443 | E3: 20.918953 | F3: =D3/16 -> 4.055090188 | G3: =E3/16 -> 1.307434562 | H3: 122.32576 | I3: 62635 | J3: =G3/SQRT(I3) -> 0.005224099266 | K3: =J3*100 -> 0.5224099266 | L3: =(F3-$Y$2)/$Y$2 -> 0.01124443579 | M3: =100*L3 -> 1.124443579 | N3: =G3/F3 -> 0.3224181219 | O3: =(F3-$Z$2)^2 -> 0.001184511605 | P3: =(SQRT((1/(((COUNT(O6:O9))-1))*(SUM(O6:O9)))))/$Z$3 -> 0.008965668072 | Q3: =(F7/F3)-1 -> 0.9033403896 | R3: =SQRT((J3^2)+(J7^2)) -> 0.02837974204 | S3: 6.275339958 | T3: =100*((SQRT((J3^2)+(J7^2))/$Y$5)) -> 3.338793181 | U3: =SQRT((N3^2)+(N7^2)) -> 0.3628111888 | V3: =(Q3-$Z$5)^2 -> 2.046574021e-05 | X3: Hot_1_d20mm | Y3: 7.44 | Z3: =AVERAGE(F6:F9) -> 7.670822328
A4: BG | B4: 5620 | C4: 93.66666667 | D4: 64.385872 | E4: 22.825522 | F4: 4.024117 | G4: 1.426595125 | H4: 122.32576 | I4: 62635 | J4: 0.005700227575 | K4: 0.5700227575 | L4: =(F4-$Y$2)/$Y$2 -> 0.003520448878 | M4: 0.3520448878 | N4: 0.3545113437 | O4: =(F4-$Z$2)^2 -> 1.185801508e-05 | Q4: 0.9235154259 | R4: 0.03551740583 | S4: 8.648873632 | T4: =100*((SQRT((J4^2)+(J8^2))/$Y$5)) -> 4.178518332 | U4: =SQRT((N4^2)+(N8^2)) -> 0.4112713528 | V4: =(Q4-$Z$5)^2 -> 0.0002449578265
A5: BG | B5: 5920 | C5: 98.66666667 | D5: 63.642783 | E5: 24.200602 | F5: 3.977673938 | G5: 1.512537625 | H5: 122.32576 | I5: 62635 | J5: 0.006043626904 | K5: 0.6043626904 | L5: =(F5-$Y$2)/$Y$2 -> -0.008061362219 | M5: -0.8061362219 | N5: 0.3802568156 | O5: =(F5-$Z$2)^2 -> 0.001848958344 | Q5: 0.9109601005 | R5: 0.03435195812 | S5: 7.171776534 | T5: =100*((SQRT((J5^2)+(J9^2))/$Y$5)) -> 4.041406838 | U5: =SQRT((N5^2)+(N9^2)) -> 0.4318960448 | V5: =(Q5-$Z$5)^2 -> 9.58399788e-06 | X5: BPnd | Y5: 0.85 | Z5: =AVERAGE(Q2:Q5) -> 0.9078642973
A6: Hot_1_d20mm | B6: 5020 | C6: 83.66666667 | D6: 121.975121 | E6: 19.09129 | F6: 7.623445063 | G6: 1.193205625 | H6: 4.170165 | I6: 2119 | J6: 0.02592088431 | K6: 2.592088431 | L6: =(F6-$Y$3)/$Y$3 -> 0.02465659442 | M6: 2.465659442 | N6: 0.1565179017 | O6: =(F6-$Z$3)^2 -> 0.002244605298
A7: Hot_1_d20mm | B7: 5320 | C7: 88.66666667 | D7: 123.491471 | E7: 20.545104 | F7: 7.718216938 | G7: 1.284069 | H7: 4.170165 | I7: 2119 | J7: 0.0278947763 | K7: 2.78947763 | L7: =(F7-$Y$3)/$Y$3 -> 0.03739474966 | M7: 3.739474966 | N7: 0.1663686069 | O7: =(F7-$Z$3)^2 -> 0.002246248998
A8: Hot_1_d20mm | B8: 5620 | C8: 93.66666667 | D8: 123.847218 | E8: 25.820239 | F8: 7.740451125 | G8: 1.613764938 | H8: 4.170165 | I8: 2119 | J8: 0.0350570039 | K8: 3.50570039 | L8: 0.04038321573 | M8: 4.038321573 | N8: 0.2084846104 | O8: 0.004848169354
A9: Hot_1_d20mm | B9: 5920 | C9: 98.66666667 | D9: 121.618819 | E9: 24.906319 | F9: 7.601176188 | G9: 1.556644937 | H9: 4.170165 | I9: 2119 | J9: 0.03381614408 | K9: 3.381614408 | L9: 0.02166346606 | M9: 2.166346606 | N9: 0.2047900087 | O9: 0.004850584904

Sheet Constant_5_DefaultT6_G2.5mm
A1: VoiName(Region) [string] | B1: Time [seconds] | C1: Time [minutes] | D1: Averaged [kBq/cc] | E1: Sd [kBq/cc] | F1: Averaged [kBq/cc] | G1: Sd [kBq/cc] | H1: Volume [ccm] | I1: NumberOfPixels [voxels] | J1: SE | K1: %SE | L1: Bias | M1: %Bias | N1: COVframe | O1: COVmean | P1: COVmean | Q1: BPnd | R1: SE | S1: %Bias | T1: %BiasSE | U1: COVframe | V1: COVmean | W1: COVmean | X1: T6 True Data | Y1: kBq/ml | Z1: Av.Measured
A2: BG | B2: 6220 | C2: =B2/60 -> 103.6666667 | D2: 64.252084 | E2: 25.351135 | F2: =D2/32 -> 2.007877625 | G2: =E2/32 -> 0.7922229687 | H2: 122.32576 | I2: 62635 | J2: =G2/SQRT(I2) -> 0.003165475006 | K2: =J2*100 -> 0.3165475006 | L2: =(F2-$Y$2)/$Y$2 -> 0.008983731156 | M2: =100*L2 -> 0.8983731156 | N2: =G2/F2 -> 0.3945573968 | O2: =(F2-$Z$2)^2 -> 2.259747057e-05 | P2: =(SQRT((1/(((COUNT(O2:O5))-1))*(SUM(O2:O5)))))/$Z$2 -> 0.005414731122 | Q2: =(F6/F2)-1 -> 0.8781103193 | R2: =SQRT((J2^2)+(J6^2)) -> 0.01830401907 | S2: =100*((Q2-$Y$5)/$Y$5) -> 3.307096394 | T2: =100*((SQRT((J2^2)+(J6^2))/$Y$5)) -> 2.153414008 | U2: =SQRT((N2^2)+(N6^2)) -> 0.4517811176 | V2: =(Q2-$Z$5)^2 -> 1.658158309e-05 | W2: =(SQRT((1/(((COUNT(V2:V5))-1))*(SUM(V2:V5)))))/$Z$5 -> 0.03715232631 | X2: BG | Y2: 1.99 | Z2: =AVERAGE(F2:F5) -> 2.012631305
A3: BG | B3: 6520 | C3: =B3/60 -> 108.6666667 | D3: 63.987603 | E3: 27.885837 | F3: =D3/32 -> 1.999612594 | G3: =E3/32 -> 0.8714324062 | H3: 122.32576 | I3: 62635 | J3: =G3/SQRT(I3) -> 0.003481971125 | K3: =J3*100 -> 0.3481971125 | L3: =(F3-$Y$2)/$Y$2 -> 0.004830449121 | M3: =100*L3 -> 0.4830449121 | N3: =G3/F3 -> 0.4358006191 | O3: =(F3-$Z$2)^2 -> 0.0001694868345 | P3: =(SQRT((1/(((COUNT(O6:O9))-1))*(SUM(O6:O9)))))/$Z$3 -> 0.01387473964 | Q3: =(F7/F3)-1 -> 0.9239887295 | R3: =SQRT((J3^2)+(J7^2)) -> 0.01856796741 | S3: =100*((Q3-$Y$5)/$Y$5) -> 8.704556412 | T3: =100*((SQRT((J3^2)+(J7^2))/$Y$5)) -> 2.184466754 | U3: =SQRT((N3^2)+(N7^2)) -> 0.4873859347 | V3: =(Q3-$Z$5)^2 -> 0.001747771833 | X3: Hot_1_d20mm | Y3: 3.7 | Z3: =AVERAGE(F6:F9) -> 3.787941211
A4: BG | B4: 6820 | C4: 113.6666667 | D4: 64.631871 | E4: 29.490589 | F4: 2.019745969 | G4: 0.9215809062 | H4: 122.32576 | I4: 62635 | J4: 0.003682348833 | K4: 0.3682348833 | L4: 0.01494772299 | M4: 1.494772299 | N4: 0.456285553 | O4: 5.061844472e-05 | Q4: 0.8439976772 | R4: 0.02140669654 | S4: -0.7061556182 | T4: 2.518434887 | U4: 0.5254788216 | V4: 0.001458070635
A5: BG | B5: 7120 | C5: 118.6666667 | D5: 64.745249 | E5: 32.107676 | F5: 2.023289031 | G5: 1.003364875 | H5: 122.32576 | I5: 62635 | J5: 0.004009131973 | K5: 0.4009131973 | L5: 0.01672815641 | M5: 1.672815641 | N5: 0.495907831 | O5: 0.0001135871355 | Q5: 0.8826327473 | R5: 0.02159488002 | S5: 3.839146742 | T5: 2.54057412 | U5: 0.558285954 | V5: 2.028412045e-07 | X5: BPnd | Y5: 0.85 | Z5: =AVERAGE(Q2:Q5) -> 0.8821823684
A6: Hot_1_d20mm | B6: 6220 | C6: 103.6666667 | D6: 120.672502 | E6: 26.556352 | F6: 3.771015687 | G6: 0.829886 | H6: 4.170165 | I6: 2119 | J6: 0.01802822459 | K6: 1.802822459 | L6: =(F6-$Y$3)/$Y$3 -> 0.01919342905 | M6: 1.919342905 | N6: 0.2200696228 | O6: =(F6-$Z$3)^2 -> 0.0002864733436
A7: Hot_1_d20mm | B7: 6520 | C7: 108.6666667 | D7: 123.111427 | E7: 26.866194 | F7: 3.847232094 | G7: 0.8395685625 | H7: 4.170165 | I7: 2119 | J7: 0.01823856603 | K7: 1.823856603 | L7: =(F7-$Y$3)/$Y$3 -> 0.03979245777 | M7: 3.979245777 | N7: 0.2182266476 | O7: =(F7-$Z$3)^2 -> 0.003515408785
A8: Hot_1_d20mm | B8: 6820 | C8: 113.6666667 | D8: 119.18102 | E8: 31.062947 | F8: 3.724406875 | G8: 0.9707170938 | H8: 4.170165 | I8: 2119 | J8: 0.02108760213 | K8: 2.108760213 | L8: 0.006596452703 | M8: 0.6596452703 | N8: 0.2606366937 | O8: 0.004036611843
A9: Hot_1_d20mm | B9: 7120 | C9: 118.6666667 | D9: 121.891526 | E9: 31.257187 | F9: 3.809110187 | G9: 0.9767870937 | H9: 4.170165 | I9: 2119 | J9: 0.02121946521 | K9: 2.121946521 | L9: 0.02948923986 | M9: 2.948923986 | N9: 0.2564344547 | O9: 0.0004481255687
